[Event "European School-ch 2019"]
[Site "Mamaia"]
[Date "2019.06.03"]
[Round "4.7"]
[White "Ognean, Mihnea-Ionut"]
[Black "Ceres, Dragos"]
[Result "1/2-1/2"]
[ECO "E20"]
[WhiteElo "2260"]
[BlackElo "2291"]
[Annotator "ChessBase"]
[PlyCount "110"]
[EventDate "2019.05.31"]
[EventType "swiss"]
[EventCountry "ROU"]
[SourceTitle "playchess.com"]
[Source "ChessBase"]
[SourceQuality "1"]
[TimeControl "40/5400+30:1800+30"]

1. d4 {[%emt 0:00:00]} Nf6 {[%emt 0:00:00]} 2. c4 {[%emt 0:00:00]} e6 {[%emt 0:00:00]} 3. Nc3 {[%emt 0:00:00]} Bb4 {[%emt 0:00:00]} 4. f3 {[%emt 0:00:00]} c5 {[%emt 0:00:04]} 5. d5 {[%emt 0:00:00]} b5 {[%emt 0:00:05]} 6. e4 {[%emt 0:00:00]} O-O {[%emt 0:00:13]} 7. e5 {[%emt 0:00:09]} Ne8 {[%emt 0:00:05]} 8. f4 {[%emt 0:00:05]} exd5 {[%emt 0:00:13]} 9. cxd5 {[%emt 0:00:04]} d6 {[%emt 0:00:07]} 10. Nf3 {[%emt 0:00:11]} c4 {[%emt 0:00:05]} 11. a4 {[%emt 0:06:43]} Bg4 {[%emt 0:00:06]} 12. Be2 {[%emt 0:02:17]} Nc7 {[%emt 0:01:16]} 13. axb5 {[%emt 0:12:05]} dxe5 {[%emt 0:00:31]} 14. b6 {[%emt 0:02:19]} axb6 {[%emt 0:02:48]} 15. Rxa8 {[%emt 0:00:04]} Nxa8 {[%emt 0:00:05]} 16. fxe5 {[%emt 0:00:35]} Nc7 {[%emt 0:04:00]} 17. d6 {[%emt 0:03:20]} Ne6 {[%emt 0:00:18]} 18. O-O {[%emt 0:01:57]} Nd7 {[%emt 0:05:39]} 19. Qd5 {[%emt 0:07:21]} Qc8 {[%emt 0:18:50]} 20. Kh1 {[%emt 0:08:57]} Bxc3 {[%emt 0:01:36]} 21. bxc3 {[%emt 0:00:09]} Qc5 {[%emt 0:00:40]} 22. Qxc5 {[%emt 0:05:05]} Nexc5 {[%emt 0:01:06]} 23. Bxc4 {[%emt 0:13:16]} Bxf3 {[%emt 0:03:04]} 24. gxf3 {[%emt 0:00:11]} Nxe5 {[%emt 0:00:04]} 25. Be2 {[%emt 0:02:51]} Rd8 {[%emt 0:06:04]} 26. Rd1 {[%emt 0:00:14]} f6 {[%emt 0:00:25]} 27. Kg2 {[%emt 0:02:06]} g5 {[%emt 0:03:10]} 28. h4 {[%emt 0:09:18]} h6 {[%emt 0:00:10]} 29. f4 {[%emt 0:01:11]} gxf4 {[%emt 0:01:30]} 30. Bxf4 {[%emt 0:00:05]} Ne4 {[%emt 0:00:14]} 31. Bf3 {[%emt 0:20:05]} Rxd6 {[%emt 0:09:25]} 32. Rd4 {[%emt 0:01:13]} Rxd4 {[%emt 0:03:30]} 33. cxd4 {[%emt 0:00:04]} Ng6 {[%emt 0:00:12]} 34. Bxe4 {[%emt 0:00:23]} Nxf4+ {[%emt 0:00:05]} 35. Kf3 {[%emt 0:00:04]} Ne6 {[%emt 0:00:23]} 36. Bd5 {[%emt 0:04:42]} Kf7 {[%emt 0:00:16]} 37. Ke4 {[%emt 0:00:04]} Ke7 {[%emt 0:00:15]} 38. Bc4 {[%emt 0:00:08]} Ng7 {[%emt 0:02:59]} 39. Bd3 {[%emt 0:01:25]} Ke6 {[%emt 0:01:28]} 40. Bc4+ {[%emt 0:00:00]} Kd6 {[%emt 0:00:00]} 41. Kf4 {[%emt 0:04:39]} Kc6 {[%emt 0:01:00]} 42. Ke4 {[%emt 0:00:36]} Kd6 {[%emt 0:02:37]} 43. Kf4 {[%emt 0:00:08]} Ke7 {[%emt 0:08:57]} 44. Ke4 {[%emt 0:00:21]} Ne8 {[%emt 0:02:22]} 45. Bd3 {[%emt 0:08:01]} Nd6+ {[%emt 0:01:23]} 46. Kd5 {[%emt 0:00:05]} Kd7 {[%emt 0:01:05]} 47. Bc2 {[%emt 0:00:23]} b5 {[%emt 0:01:05]} 48. Bd3 {[%emt 0:00:34]} f5 {[%emt 0:00:32]} 49. Ke5 {[%emt 0:01:30]} b4 {[%emt 0:01:04]} 50. Bc2 {[%emt 0:00:24]} Kc6 {[%emt 0:09:18]} 51. Ba4+ {[%emt 0:03:56]} Kc7 {[%emt 0:00:31]} 52. Bb3 {[%emt 0:00:05]} Kd7 {[%emt 0:00:25]} 53. Ba4+ {[%emt 0:01:14]} Ke7 {[%emt 0:00:06]} 54. Bb3 {[%emt 0:00:03]} Nb5 {[%emt 0:08:15]} 55. Bc4 {[%emt 0:00:56]} Nxd4 {[%emt 0:00:21]} 1/2-1/2

[Event "European School-ch 2019"]
[Site "Mamaia"]
[Date "2019.06.03"]
[Round "4.8"]
[White "Balan, Bogdan"]
[Black "Tinarlioglu, Emre"]
[Result "0-1"]
[ECO "A61"]
[WhiteElo "2027"]
[BlackElo "1907"]
[Annotator "NA RC"]
[PlyCount "150"]
[EventDate "2019.05.31"]
[EventType "swiss"]
[EventCountry "ROU"]
[SourceTitle "playchess.com"]
[Source "ChessBase"]
[SourceQuality "1"]
[TimeControl "40/5400+30:1800+30"]

1. d4 {[%emt 0:00:00]} Nf6 {[%emt 0:00:00]} 2. c4 {[%emt 0:00:00]} c5 {[%emt 0:00:00]} 3. d5 {[%emt 0:00:00]} e6 {[%emt 0:00:00]} 4. Nc3 {[%emt 0:00:00]} exd5 {[%emt 0:00:00]} 5. cxd5 {[%emt 0:00:04]} d6 {[%emt 0:00:00]} 6. Nf3 {[%emt 0:00:06]} g6 {[%emt 0:00:04]} 7. Bf4 {[%emt 0:00:07]} a6 {[%emt 0:00:09]} 8. a4 {[%emt 0:00:10]} Bg7 {[%emt 0:00:23]} 9. h3 {[%emt 0:00:06]} O-O {[%emt 0:00:12]} 10. e3 {[%emt 0:00:04]} Qe7 {[%emt 0:00:34] A61: Modern Benoni: Nf3 without early e4} 11. Be2 {[%emt 0:00:38]} Nbd7 {[%emt 0:00:14]} 12. O-O {[%emt 0:00:11]} Rb8 {[%emt 0:00:29]} 13. Nd2 {[%emt 0:07:58]} (13. Re1 Ne8 14. e4 Ne5 15. Nxe5 Bxe5 16. Qd2 Nf6 17. Bf1 Re8 18. Rad1 Bd4 19. b4 Nh5 20. Bh2 b6 21. b5 {½-½ (21) Ponomariov,R (2663)-Donchenko,A (2607) Germany 2019}) 13... Ne8 {[%emt 0:00:10]} 14. Qb3 {[%emt 0:01:46]} f5 {[%emt 0:08:48]} 15. Rfe1 {[%emt 0:03:43]} g5 {[%emt 0:06:59]} 16. Bh2 {[%emt 0:00:26]} Rf6 $146 {[%emt 0:00:06]} (16... b6 $14) ({Predecessor:} 16... Kh8 17. Nc4 f4 18. exf4 gxf4 {0-1 (41) Schiendorfer,E (2349)-Nigalidze,G (2472) Plovdiv 2012}) 17. Nc4 {[%emt 0:05:18]} Rh6 {[%emt 0:05:53]} 18. a5 {[%emt 0:01:40]} Ne5 {[%emt 0:03:55]} 19. Nxe5 {[%emt 0:04:35]} Bxe5 {[%emt 0:00:12]} 20. Bxe5 {[%emt 0:01:09]} Qxe5 {[%emt 0:00:20]} 21. Bxa6 {[%emt 0:08:56]} g4 {[%emt 0:04:02]} 22. Bf1 {[%emt 0:11:47]} gxh3 {[%emt 0:02:37]} 23. g3 {[%emt 0:02:16]} Nf6 {[%emt 0:02:20]} 24. a6 {[%emt 0:14:06]} Ng4 {[%emt 0:09:29]} 25. Re2 {[%emt 0:01:08]} Qe7 {[%emt 0:09:06]} 26. a7 {[%emt 0:02:54]} Ra8 {[%emt 0:00:01]} 27. Qc4 {[%emt 0:04:46]} Bd7 {[%emt 0:10:23]} 28. Qf4 {[%emt 0:05:51]} Kg7 {[%emt 0:06:08]} 29. b4 {[%emt 0:05:09]} cxb4 {[%emt 0:13:35]} 30. Qxb4 {[%emt 0:00:08]} Be8 {[%emt 0:00:02]} 31. Qd4+ {[%emt 0:06:47]} Kg8 {[%emt 0:02:32]} 32. f3 {[%emt 0:05:12]} Ne5 {[%emt 0:00:54]} 33. Rf2 {[%emt 0:03:51]} Qg7 {[%emt 0:00:24]} 34. Kh2 {[%emt 0:01:16]} Rg6 {[%emt 0:01:09]} 35. Bxh3 {[%emt 0:04:18]} Rxg3 {[%emt 0:02:09]} 36. Raf1 {[%emt 0:00:52]} Bh5 {[%emt 0:00:44]} 37. Qf4 {[%emt 0:00:40]} Nxf3+ {[%emt 0:02:04]} 38. Rxf3 {[%emt 0:00:08]} Rxf3 {[%emt 0:00:01]} 39. Rxf3 {[%emt 0:00:18]} Bxf3 {[%emt 0:00:02]} 40. Qxf3 {[%emt 0:00:00]} Qxc3 {[%emt 0:00:00]} 41. Qg3+ {[%emt 0:03:11]} Kf7 {[%emt 0:02:08]} 42. Qxd6 {[%emt 0:00:57]} Qc2+ {[%emt 0:09:30]} 43. Bg2 {[%emt 0:00:46]} Rxa7 {[%emt 0:05:21]} 44. Qe6+ {[%emt 0:02:08]} Kg7 {[%emt 0:01:11]} 45. Qe7+ {[%emt 0:01:38]} Kg6 {[%emt 0:00:31]} 46. Qe6+ {[%emt 0:00:56]} Kg7 {[%emt 0:00:11]} 47. Qe7+ {[%emt 0:04:39]} Kg6 {[%emt 0:00:13]} 48. Qe8+ {[%emt 0:00:34]} Kg7 {[%emt 0:00:10]} 49. Qd7+ {[%emt 0:00:43]} Kg6 {[%emt 0:01:21]} 50. Qd6+ {[%emt 0:03:27]} Kh5 {[%emt 0:07:42]} 51. Kg3 {[%emt 0:00:53]} Ra6 {[%emt 0:06:44]} 52. Bf3+ {[%emt 0:01:47]} Kg5 {[%emt 0:00:05]} 53. Qe7+ {[%emt 0:01:42]} Rf6 {[%emt 0:02:06]} 54. Qxh7 $11 {[%emt 0:01:22]} Rh6 {[%emt 0:01:48]} 55. Qg7+ {[%emt 0:01:05]} Rg6 {[%emt 0:00:49]} 56. Qe7+ {[%emt 0:06:36]} Kh6+ {[%emt 0:02:21]} 57. Kf4 {[%emt 0:01:29]} b5 {[%emt 0:01:32]} 58. Qf8+ {[%emt 0:00:40]} Kh7 {[%emt 0:02:15]} 59. Qf7+ {[%emt 0:02:28]} Kh6 {[%emt 0:00:39]} 60. Qf8+ {[%emt 0:02:25]} Kh7 {[%emt 0:00:05]} 61. Qxf5 {[%emt 0:01:59]} Qxf5+ {[%emt 0:00:47]} 62. Kxf5 {[%emt 0:00:04]} Rb6 {[%emt 0:00:04]} 63. Bd1 {[%emt 0:00:14]} Kg7 {[%emt 0:00:16]} 64. Bb3 {[%emt 0:00:09]} Kf8 {[%emt 0:00:09]} 65. e4 {[%emt 0:00:12]} Ke7 {[%emt 0:00:28]} 66. e5 {[%emt 0:00:06]} Ra6 {[%emt 0:00:48]} 67. Ke4 {[%emt 0:00:25]} Ra3 {[%emt 0:01:07]} 68. d6+ {[%emt 0:00:15]} Kd7 {[%emt 0:00:02]} 69. Bf7 {[%emt 0:02:05]} Ra1 {[%emt 0:00:05]} 70. Bh5 {[%emt 0:00:28]} b4 {[%emt 0:02:08]} 71. Kd5 Ra5+ 72. Kd4 b3 73. Bg4+ Kc6 74. Bf3+ Kd7 75. Bg4+ Kc6 0-1

[Event "European School-ch 2019"]
[Site "Mamaia"]
[Date "2019.06.03"]
[Round "4.9"]
[White "Neshev, Nikola"]
[Black "Dharmasena, Gavith"]
[Result "1-0"]
[ECO "C52"]
[WhiteElo "1370"]
[BlackElo "1560"]
[Annotator "NA"]
[PlyCount "57"]
[EventDate "2019.05.31"]
[EventType "swiss"]
[EventCountry "ROU"]
[SourceTitle "playchess.com"]
[Source "ChessBase"]
[SourceQuality "1"]
[TimeControl "40/5400+30:1800+30"]

1. e4 {[%emt 0:00:53]} e5 {[%emt 0:00:00]} 2. Nf3 {[%emt 0:00:12]} Nc6 {[%emt 0:00:00]} 3. Bc4 {[%emt 0:00:05]} Bc5 {[%emt 0:00:00]} 4. b4 {[%emt 0:00:05]} Bxb4 {[%emt 0:02:51]} 5. c3 {[%emt 0:00:06]} Ba5 {[%emt 0:02:23]} 6. d4 {[%emt 0:00:08]} exd4 {[%emt 0:00:08]} 7. O-O {[%emt 0:00:04]} d6 {[%emt 0:03:07]} 8. cxd4 {[%emt 0:00:19]} Nf6 {[%emt 0:00:37]} 9. Ba3 {[%emt 0:03:45]} O-O {[%emt 0:09:12]} 10. e5 {[%emt 0:00:05]} Ne4 {[%emt 0:00:33]} 11. Qd3 {[%emt 0:08:30]} Ng5 {[%emt 0:02:45]} 12. Nxg5 {[%emt 0:00:22]} Qxg5 {[%emt 0:00:11]} 13. f4 {[%emt 0:01:00]} Qg6 {[%emt 0:02:27]} 14. f5 {[%emt 0:00:13]} Qg4 {[%emt 0:00:14]} 15. Bb2 {[%emt 0:43:27]} dxe5 {[%emt 0:04:02]} 16. dxe5 {[%emt 0:00:54]} Bb6+ {[%emt 0:00:13]} 17. Kh1 {[%emt 0:00:17]} Rd8 {[%emt 0:00:08]} 18. Bxf7+ {[%emt 0:05:43]} Kxf7 {[%emt 0:03:52]} 19. Qb3+ {[%emt 0:00:08]} Ke8 {[%emt 0:00:53]} 20. Qg8+ {[%emt 0:00:32]} Ke7 {[%emt 0:01:09]} 21. Ba3+ {[%emt 0:00:44]} Nb4 {[%emt 0:00:30]} 22. Bxb4+ {[%emt 0:00:30]} Qxb4 {[%emt 0:00:30]} 23. Qxg7+ {[%emt 0:00:30]} Ke8 {[%emt 0:00:30]} 24. f6 {[%emt 0:03:21]} Qf8 {[%emt 0:03:48]} 25. f7+ {[%emt 0:00:15]} Kd7 {[%emt 0:01:00]} 26. Rd1+ {[%emt 0:01:28]} Kc6 {[%emt 0:00:48]} 27. Qf6+ {[%emt 0:00:05]} Rd6 {[%emt 0:00:37]} 28. exd6 {[%emt 0:00:22]} cxd6 29. Qxd6+ {[%emt 0:00:41] Kd5} 1-0

[Event "European School-ch 2019"]
[Site "Mamaia"]
[Date "2019.06.03"]
[Round "4.10"]
[White "Ochedzan, Tymon"]
[Black "Kasaeva, Sofiia"]
[Result "1/2-1/2"]
[ECO "C89"]
[WhiteElo "2064"]
[BlackElo "1890"]
[Annotator "NA"]
[PlyCount "62"]
[EventDate "2019.05.31"]
[EventType "swiss"]
[EventCountry "ROU"]
[SourceTitle "playchess.com"]
[Source "ChessBase"]
[SourceQuality "1"]
[TimeControl "40/5400+30:1800+30"]

1. e4 {[%emt 0:00:00]} e5 {[%emt 0:00:00]} 2. Nf3 {[%emt 0:00:00]} Nc6 {[%emt 0:00:00]} 3. Bb5 {[%emt 0:00:00]} a6 {[%emt 0:00:00]} 4. Ba4 {[%emt 0:00:00]} Nf6 {[%emt 0:00:02]} 5. O-O {[%emt 0:00:48]} Be7 {[%emt 0:00:34]} 6. Re1 {[%emt 0:00:32]} b5 {[%emt 0:00:06]} 7. Bb3 {[%emt 0:00:11]} O-O {[%emt 0:00:23]} 8. c3 {[%emt 0:00:53]} d5 {[%emt 0:02:20]} 9. d4 {[%emt 0:01:02]} Nxe4 {[%emt 0:22:16]} 10. dxe5 {[%emt 0:02:04]} Be6 $11 {[%emt 0:02:28]} 11. Nd4 {[%emt 0:08:20]} Na5 {[%emt 0:08:20]} 12. Bc2 {[%emt 0:03:25]} c5 {[%emt 0:16:27]} 13. Nxe6 {[%emt 0:02:53]} fxe6 {[%emt 0:00:05]} 14. Bxe4 {[%emt 0:01:48]} dxe4 {[%emt 0:00:48]} 15. Qg4 {[%emt 0:04:46]} Qd5 {[%emt 0:01:55]} 16. Nd2 {[%emt 0:02:55]} Nc6 {[%emt 0:04:36]} 17. Qxe4 {[%emt 0:08:21]} Qxe4 {[%emt 0:01:37]} 18. Nxe4 {[%emt 0:19:35]} Nxe5 {[%emt 0:03:20]} 19. Bg5 {[%emt 0:13:16]} Bxg5 {[%emt 0:02:38]} 20. Nxg5 {[%emt 0:00:04]} Nd3 {[%emt 0:00:40]} 21. Nxe6 {[%emt 0:03:21]} Rf6 {[%emt 0:07:02]} 22. Re3 {[%emt 0:02:23]} c4 {[%emt 0:02:03]} 23. b3 {[%emt 0:05:39]} Nxf2 {[%emt 0:02:27]} 24. bxc4 {[%emt 0:02:25]} bxc4 {[%emt 0:00:27]} 25. Nc5 {[%emt 0:02:51]} Rd8 {[%emt 0:08:01]} 26. Rf1 {[%emt 0:07:16]} Rd2 {[%emt 0:12:38]} 27. Ne4 {[%emt 0:04:05]} Nxe4 {[%emt 0:00:17]} 28. Rxe4 {[%emt 0:00:04]} Rxf1+ {[%emt 0:00:18]} 29. Kxf1 {[%emt 0:00:04]} Rxa2 {[%emt 0:00:44]} 30. Rxc4 {[%emt 0:00:07]} Kf7 {[%emt 0:00:57]} 31. Rc6 {[%emt 0:01:13]} a5 {[%emt 0:00:55]} 1/2-1/2

[Event "European School-ch 2019"]
[Site "Mamaia"]
[Date "2019.06.03"]
[Round "4.11"]
[White "Vilcu, Matei-Stefan"]
[Black "Padurariu, Mihai-Edward"]
[Result "0-1"]
[ECO "C14"]
[WhiteElo "1991"]
[BlackElo "2090"]
[Annotator "NA"]
[PlyCount "98"]
[EventDate "2019.05.31"]
[EventType "swiss"]
[EventCountry "ROU"]
[SourceTitle "playchess.com"]
[Source "ChessBase"]
[SourceQuality "1"]
[TimeControl "40/5400+30:1800+30"]

1. e4 {[%emt 0:00:00]} e6 {[%emt 0:00:00]} 2. d4 {[%emt 0:00:00]} d5 {[%emt 0:00:00]} 3. Nc3 {[%emt 0:00:00]} Nf6 {[%emt 0:00:30]} 4. Bg5 {[%emt 0:00:43]} Be7 {[%emt 0:00:14]} 5. e5 {[%emt 0:00:17]} Nfd7 {[%emt 0:00:05]} 6. Bxe7 {[%emt 0:00:31]} Qxe7 {[%emt 0:00:06]} 7. f4 {[%emt 0:00:03]} a6 {[%emt 0:03:48]} 8. Nf3 {[%emt 0:00:48]} c5 9. dxc5 {[%emt 0:01:42]} Nxc5 {[%emt 0:09:36]} 10. Bd3 {[%emt 0:02:11]} b5 $11 {[%emt 0:16:23]} 11. Qd2 {[%emt 0:03:31]} Bb7 {[%emt 0:06:16]} 12. Ne2 {[%emt 0:07:31]} Nbd7 {[%emt 0:05:48]} 13. Ned4 {[%emt 0:04:19]} Ne4 {[%emt 0:07:10]} 14. Qe2 {[%emt 0:13:56]} Ndc5 {[%emt 0:04:42]} 15. O-O {[%emt 0:03:23]} O-O {[%emt 0:02:35]} 16. Kh1 {[%emt 0:03:32]} f6 {[%emt 0:05:54]} 17. exf6 {[%emt 0:09:58]} Rxf6 {[%emt 0:03:29]} 18. Bxe4 {[%emt 0:08:38]} Nxe4 {[%emt 0:03:49]} 19. Nd2 {[%emt 0:04:35]} Raf8 {[%emt 0:02:53]} 20. Nxe4 {[%emt 0:02:15]} dxe4 {[%emt 0:00:04]} 21. Qe3 {[%emt 0:08:34]} e5 {[%emt 0:01:16]} 22. Ne2 {[%emt 0:00:59]} exf4 {[%emt 0:01:06]} 23. Rxf4 {[%emt 0:00:55]} Rxf4 {[%emt 0:01:27]} 24. Nxf4 {[%emt 0:00:05]} Qe5 {[%emt 0:05:04]} 25. Nd3 {[%emt 0:09:05]} Qf6 {[%emt 0:02:45]} 26. Nc5 {[%emt 0:00:38]} Bc6 {[%emt 0:03:04]} 27. Kg1 {[%emt 0:03:25]} Kh8 {[%emt 0:05:58]} 28. c3 {[%emt 0:01:09]} a5 {[%emt 0:02:14]} 29. Rd1 {[%emt 0:03:27]} b4 {[%emt 0:00:59]} 30. Nb3 {[%emt 0:03:20]} bxc3 {[%emt 0:00:54]} 31. bxc3 {[%emt 0:00:01]} a4 {[%emt 0:01:00]} 32. Nd4 {[%emt 0:01:32]} Bd5 {[%emt 0:00:15]} 33. Qe2 {[%emt 0:01:35]} Qf7 {[%emt 0:01:40]} 34. Rf1 {[%emt 0:01:52]} Qxf1+ {[%emt 0:00:06]} 35. Qxf1 {[%emt 0:00:02]} Rxf1+ {[%emt 0:00:06]} 36. Kxf1 {[%emt 0:00:02]} Bxa2 {[%emt 0:00:08]} 37. Ke2 {[%emt 0:01:41]} Bc4+ {[%emt 0:01:32]} 38. Ke3 {[%emt 0:01:05]} Bd3 {[%emt 0:00:41]} 39. c4 {[%emt 0:00:05]} Bxc4 {[%emt 0:01:26]} 40. Kxe4 {[%emt 0:00:00]} a3 {[%emt 0:00:00]} 41. Nc2 {[%emt 0:00:58]} a2 {[%emt 0:01:55]} 42. g4 {[%emt 0:03:08]} Kg8 {[%emt 0:02:42]} 43. h4 {[%emt 0:00:14]} Kf7 {[%emt 0:00:15]} 44. Ke5 {[%emt 0:00:08]} Bb3 {[%emt 0:00:14]} 45. Na1 {[%emt 0:00:15]} Bd1 {[%emt 0:00:11]} 46. Kf5 {[%emt 0:00:16]} g6+ {[%emt 0:00:27]} 47. Kg5 {[%emt 0:00:06]} Kg7 {[%emt 0:00:07]} 48. h5 {[%emt 0:00:47]} h6+ {[%emt 0:00:07]} 49. Kh4 {[%emt 0:00:03]} g5+ {[%emt 0:00:04]} 0-1

[Event "European School-ch 2019"]
[Site "Mamaia"]
[Date "2019.06.03"]
[Round "4.12"]
[White "Simonyan, Grigori"]
[Black "Silich, Yahor"]
[Result "0-1"]
[ECO "B30"]
[WhiteElo "2019"]
[BlackElo "2082"]
[Annotator "NA"]
[PlyCount "48"]
[EventDate "2019.05.31"]
[EventType "swiss"]
[EventCountry "ROU"]
[SourceTitle "playchess.com"]
[Source "ChessBase"]
[SourceQuality "1"]
[TimeControl "40/5400+30:1800+30"]

1. e4 {[%emt 0:00:00]} c5 {[%emt 0:00:00]} 2. Nf3 {[%emt 0:00:00]} Nc6 {[%emt 0:00:24]} 3. Bb5 {[%emt 0:00:00]} Nf6 {[%emt 0:00:27]} 4. Bxc6 dxc6 {[%emt 0:00:15]} 5. d3 {[%emt 0:12:06]} Nd7 {[%emt 0:01:28]} 6. O-O {[%emt 0:02:55]} e5 {[%emt 0:02:01]} 7. Be3 {[%emt 0:00:44]} Bd6 {[%emt 0:02:06]} 8. Nc3 {[%emt 0:02:25]} Nf8 {[%emt 0:06:09]} 9. Nd2 {[%emt 0:01:22]} Ne6 {[%emt 0:04:26]} 10. Nc4 $11 {[%emt 0:02:24]} Bc7 {[%emt 0:00:49]} 11. a4 {[%emt 0:00:36]} a5 {[%emt 0:01:37]} 12. Ne2 {[%emt 0:08:48]} Nf4 {[%emt 0:05:04]} 13. Nxf4 {[%emt 0:13:50]} exf4 {[%emt 0:00:23]} 14. Bxc5 {[%emt 0:00:10]} b6 {[%emt 0:14:01]} 15. Ba3 {[%emt 0:00:09]} b5 {[%emt 0:00:06]} 16. axb5 {[%emt 0:00:04]} cxb5 {[%emt 0:00:03]} 17. Nd2 {[%emt 0:00:03]} Ra6 {[%emt 0:00:19]} 18. Bc5 {[%emt 0:27:34]} Rg6 {[%emt 0:08:24]} 19. d4 {[%emt 0:03:29]} Bh3 {[%emt 0:06:06]} 20. Qe2 {[%emt 0:06:56]} Rxg2+ {[%emt 0:05:24]} 21. Kh1 {[%emt 0:00:08]} Rxh2+ {[%emt 0:00:03]} 22. Kxh2 {[%emt 0:00:33]} f3+ {[%emt 0:00:01]} 23. Kxh3 {[%emt 0:00:11]} Qd7+ {[%emt 0:00:30]} 24. Kh4 {[%emt 0:00:06]} g5+ {[%emt 0:00:17]} 0-1

[Event "European School-ch 2019"]
[Site "Mamaia"]
[Date "2019.06.03"]
[Round "4.13"]
[White "Levin, Guy"]
[Black "Nastore, Pavel-Alexandru"]
[Result "0-1"]
[ECO "A37"]
[WhiteElo "2054"]
[BlackElo "1942"]
[Annotator "NA"]
[PlyCount "110"]
[EventDate "2019.05.31"]
[EventType "swiss"]
[EventCountry "ROU"]
[SourceTitle "playchess.com"]
[Source "ChessBase"]
[SourceQuality "1"]
[TimeControl "40/5400+30:1800+30"]

1. Nf3 {[%emt 0:00:00]} c5 {[%emt 0:00:00]} 2. g3 {[%emt 0:00:00]} Nc6 {[%emt 0:00:00]} 3. Bg2 {[%emt 0:00:08]} g6 {[%emt 0:00:00]} 4. c4 {[%emt 0:00:34]} Bg7 {[%emt 0:00:00]} 5. Nc3 {[%emt 0:00:10]} e6 {[%emt 0:00:17]} 6. O-O {[%emt 0:00:13]} Nge7 {[%emt 0:00:03]} 7. d4 {[%emt 0:00:20]} cxd4 {[%emt 0:18:49]} 8. Nb5 {[%emt 0:00:12]} d5 {[%emt 0:02:51]} 9. c5 {[%emt 0:01:08]} (9. cxd5 $11 {remains equal.} Nxd5 10. Nfxd4) 9... Nf5 {[%emt 0:06:18]} 10. g4 {[%emt 0:01:49] [#]} (10. Bg5 $17 {keeps fighting.} f6 11. Bd2) 10... a6 $17 {[%emt 0:00:38]} 11. gxf5 {[%emt 0:03:19]} axb5 {[%emt 0:00:04]} 12. fxe6 {[%emt 0:01:41]} fxe6 {[%emt 0:00:34]} 13. Qb3 {[%emt 0:12:53]} b4 {[%emt 0:05:32]} 14. e4 {[%emt 0:00:55]} dxe3 {[%emt 0:07:51]} 15. Bxe3 {[%emt 0:00:36]} O-O {[%emt 0:00:20]} 16. Rfd1 {[%emt 0:11:32]} h6 {[%emt 0:13:10]} 17. Nd4 {[%emt 0:12:10]} Qh4 {[%emt 0:05:03]} 18. Qd3 {[%emt 0:03:23]} Ne5 {[%emt 0:01:08]} 19. Qe2 {[%emt 0:00:06]} Bd7 {[%emt 0:12:41]} 20. b3 {[%emt 0:10:54]} Rf7 {[%emt 0:00:42]} 21. Rac1 {[%emt 0:04:52]} Raf8 {[%emt 0:00:10]} 22. f4 {[%emt 0:07:08]} Ng4 {[%emt 0:01:08]} 23. Nf3 {[%emt 0:00:03]} Qe7 {[%emt 0:01:50]} 24. Bd2 {[%emt 0:03:17]} e5 {[%emt 0:11:17]} 25. fxe5 {[%emt 0:01:22]} Nxe5 {[%emt 0:01:40]} 26. Nxe5 {[%emt 0:02:28]} Bxe5 {[%emt 0:00:05]} 27. Re1 {[%emt 0:00:52]} Re8 {[%emt 0:08:22]} 28. Kh1 {[%emt 0:04:54]} Bc6 {[%emt 0:02:50]} 29. Qg4 {[%emt 0:04:56]} Kh7 {[%emt 0:00:31]} 30. Rf1 {[%emt 0:04:23]} Ref8 {[%emt 0:00:22]} 31. Rxf7+ {[%emt 0:01:53]} Rxf7 {[%emt 0:00:05]} 32. Re1 {[%emt 0:01:28]} Qc7 {[%emt 0:00:45]} 33. Qh3 {[%emt 0:01:18]} h5 {[%emt 0:00:05]} 34. Qe3 {[%emt 0:02:07]} Bf4 {[%emt 0:00:33]} 35. Qd3 {[%emt 0:00:01]} Bxh2 {[%emt 0:00:47]} 36. Re6 {[%emt 0:00:26]} Qg3 {[%emt 0:00:34]} 37. Qd4 {[%emt 0:01:34]} Qc7 {[%emt 0:00:48]} 38. Bxb4 {[%emt 0:01:28]} Rf4 {[%emt 0:00:10]} 39. Qe3 {[%emt 0:00:38]} Rf1+ {[%emt 0:00:10]} 40. Bxf1 {[%emt 0:00:00]} d4+ {[%emt 0:00:00]} 41. Qe4 {[%emt 0:01:49]} Bxe4+ {[%emt 0:00:21]} 42. Rxe4 {[%emt 0:00:16]} Be5 {[%emt 0:00:52]} 43. Bd3 {[%emt 0:00:48]} Qf7 {[%emt 0:01:31]} 44. Kg2 {[%emt 0:00:27]} Qf6 {[%emt 0:00:19]} 45. Be1 {[%emt 0:04:02]} Qg5+ {[%emt 0:00:51]} 46. Kf3 {[%emt 0:01:25]} Qg1 {[%emt 0:01:24]} 47. b4 {[%emt 0:02:19]} Kg7 {[%emt 0:03:36]} 48. b5 {[%emt 0:02:19]} g5 {[%emt 0:00:09]} 49. c6 {[%emt 0:00:14]} Qh2 {[%emt 0:00:03]} 50. Re2 {[%emt 0:01:57]} Qh1+ {[%emt 0:01:11]} 51. Kf2 {[%emt 0:00:12]} g4 {[%emt 0:00:11]} 52. Re4 {[%emt 0:00:58]} Kf6 {[%emt 0:02:37]} 53. cxb7 {[%emt 0:00:46]} Bg3+ {[%emt 0:00:14]} 54. Kxg3 {[%emt 0:00:38]} Qg1+ {[%emt 0:01:49]} 55. Kf4 {[%emt 0:00:20]} Qh2+ {[%emt 0:00:07]} 0-1

[Event "European School-ch 2019"]
[Site "Mamaia"]
[Date "2019.06.03"]
[Round "4.14"]
[White "Dobre, Radu-Fabian"]
[Black "Kanli, Alperen"]
[Result "1/2-1/2"]
[ECO "B13"]
[WhiteElo "1978"]
[BlackElo "1790"]
[Annotator "NA"]
[PlyCount "51"]
[EventDate "2019.05.31"]
[EventType "swiss"]
[EventCountry "ROU"]
[SourceTitle "playchess.com"]
[Source "ChessBase"]
[SourceQuality "1"]
[TimeControl "40/5400+30:1800+30"]

1. e4 {[%emt 0:00:00]} c6 {[%emt 0:00:00]} 2. d4 {[%emt 0:00:00]} d5 {[%emt 0:00:00]} 3. exd5 {[%emt 0:00:00]} cxd5 {[%emt 0:00:00]} 4. Bd3 {[%emt 0:00:00]} Nc6 {[%emt 0:00:00]} 5. c3 {[%emt 0:00:00]} Nf6 {[%emt 0:00:00]} 6. Bf4 {[%emt 0:00:06]} Bg4 {[%emt 0:01:00]} 7. Qb3 {[%emt 0:00:06]} e5 {[%emt 0:06:23]} 8. dxe5 {[%emt 0:10:11]} Nh5 {[%emt 0:00:10]} 9. Be3 {[%emt 0:08:04]} Nxe5 {[%emt 0:00:23]} 10. Bb5+ {[%emt 0:00:23]} Nc6 {[%emt 0:00:01]} 11. Be2 {[%emt 0:03:15]} Nf6 {[%emt 0:00:23]} 12. Nd2 $11 {[%emt 0:05:42]} Qd7 {[%emt 0:06:41]} 13. Ngf3 {[%emt 0:01:36]} Bd6 {[%emt 0:02:07]} 14. O-O {[%emt 0:01:36]} O-O {[%emt 0:01:20]} 15. Rfe1 {[%emt 0:00:18]} Be6 {[%emt 0:11:20]} 16. Qa4 {[%emt 0:01:00]} Ng4 {[%emt 0:05:14]} 17. Nf1 {[%emt 0:01:38]} Nxe3 {[%emt 0:07:59]} 18. Nxe3 {[%emt 0:00:01]} Bc5 {[%emt 0:00:00]} 19. Bf1 {[%emt 0:07:33]} Rfd8 {[%emt 0:09:23]} 20. Qh4 {[%emt 0:04:41]} Be7 {[%emt 0:05:08]} 21. Qh5 {[%emt 0:05:01]} g6 {[%emt 0:14:17]} 22. Qh6 {[%emt 0:02:17]} Bf8 {[%emt 0:00:01]} 23. Qh4 {[%emt 0:00:37]} Qe7 {[%emt 0:00:17]} 24. Qxe7 {[%emt 0:01:25]} Bxe7 {[%emt 0:00:32]} 25. Nc2 {[%emt 0:14:44]} Bf6 {[%emt 0:03:32]} 26. Rad1 {[%emt 0:07:57]} 1/2-1/2